fUSD/lending_fUSD_20250602
["ID","MTS","AMOUNT","RATE_DAILY","PERIOD"]
[363757721,1748862651930,-420.0,0.00019452,2]
[363757722,1748862651939,-420.0,0.00019452,2]
[363757723,1748862651949,-420.0,0.00019452,2]
[363757724,1748862651959,-517.32,0.00019452,2]
[363757725,1748862651968,-420.0,0.00019452,2]
[363757726,1748862651977,-515.54,0.00019452,2]
[363757727,1748862651987,-420.0,0.00019452,2]
[363757728,1748862651996,-420.0,0.00019452,2]
[363757729,1748862652006,-452.19,0.00019452,2]
[363757730,1748862652015,-420.0,0.00019452,2]
[363757731,1748862652025,-180.56,0.00019452,2]
[363757732,1748862652035,-420.0,0.00019452,2]
[363757733,1748862652045,-420.0,0.00019452,2]
[363757734,1748862652055,-420.0,0.00019452,2]
[363757735,1748862652064,-420.0,0.00019452,2]
[363757736,1748862652073,-420.0,0.00019452,2]
[363757737,1748862652083,-420.0,0.00019452,2]
[363757738,1748862652092,-420.0,0.00019452,2]
[363757739,1748862652101,-420.0,0.00019452,2]
[363757740,1748862652269,-420.0,0.00019452,2]
[363757741,1748862652283,-437.32,0.00019452,2]
[363757742,1748862652293,-420.0,0.00019452,2]
[363757743,1748862652303,-1325.44,0.00019452,2]
[363757744,1748862652314,-420.0,0.00019452,2]
[363757745,1748862652324,-522.3,0.00019452,2]
[363757746,1748862652334,-420.0,0.00019452,2]
[363757747,1748862652344,-2255.16,0.00019452,2]
[363757748,1748862652353,-420.0,0.00019452,2]
[363757749,1748862652362,-215.18,0.00019452,2]
[363757750,1748862652372,-420.0,0.00019452,2]
[363757751,1748862652382,-420.0,0.00019452,2]
[363757752,1748862652392,-420.0,0.00019452,2]
[363757753,1748862652402,-420.0,0.00019452,2]
[363757754,1748862652411,-231.7,0.00019452,2]
[363757755,1748862652421,-420.0,0.00019452,2]
[363757756,1748862652431,-867.2,0.00019452,2]
[363757757,1748862652441,-420.0,0.00019452,2]
[363757758,1748862652451,-420.0,0.00019452,2]
[363757759,1748862652461,-420.0,0.00019452,2]
[363757760,1748862652471,-420.0,0.00019452,2]
[363757761,1748862652481,-420.0,0.00019452,2]
[363757762,1748862652491,-637.6,0.00019452,2]
[363757763,1748862652500,-420.0,0.00019452,2]
[363757764,1748862652510,-420.0,0.00019452,2]
[363757765,1748862652520,-420.0,0.00019452,2]
[363757766,1748862652530,-420.0,0.00019452,2]
[363757767,1748862652541,-420.0,0.00019452,2]
[363757768,1748862652551,-483.05,0.00019452,2]
[363757769,1748862652560,-420.0,0.00019452,2]
[363757770,1748862652571,-420.0,0.00019452,2]
[363757771,1748862652581,-330.36,0.00019452,2]
[363757772,1748862652591,-420.0,0.00019452,2]
[363757773,1748862652601,-152.82330927,0.00019452,2]
[363757774,1748862652611,-420.0,0.00019452,2]
[363757775,1748862652621,-420.0,0.00019452,2]
[363757776,1748862652630,-498.55,0.00019452,2]
[363757777,1748862652641,-420.0,0.00019452,2]
[363757778,1748862652651,-420.0,0.00019452,2]
[363757779,1748862652661,-420.0,0.00019452,2]
[363757780,1748862652671,-2496.92,0.00019452,2]
[363757781,1748862652681,-420.0,0.00019452,2]
[363757782,1748862652693,-420.0,0.00019452,2]
[363757783,1748862652707,-420.0,0.00019452,2]
[363757784,1748862652717,-420.0,0.00019452,2]
[363757785,1748862652727,-488.1863566,0.00019452,2]
[363757786,1748862652736,-420.0,0.00019452,2]
[363757787,1748862652747,-457.09,0.00019452,2]
[363757788,1748862652757,-420.0,0.00019452,2]
[363757789,1748862652767,-420.0,0.00019452,2]
[363757790,1748862652777,-420.0,0.00019452,2]
[363757791,1748862652788,-420.0,0.00019452,2]
[363757792,1748862652798,-420.0,0.00019452,2]
[363757793,1748862652807,-420.0,0.00019452,2]
[363757794,1748862652818,-653.47,0.00019452,2]
[363757795,1748862652828,-420.0,0.00019452,2]
[363757796,1748862652842,-889.49,0.00019452,2]
[363757797,1748862652851,-836.29,0.00019452,2]
[363757798,1748862652862,-420.0,0.00019452,2]
[363757799,1748862652874,-420.0,0.00019452,2]
[363757800,1748862652884,-420.0,0.00019452,2]
[363757801,1748862652894,-420.0,0.00019452,2]
[363757802,1748862652905,-420.0,0.00019452,2]
[363757803,1748862652916,-420.0,0.00019452,2]
[363757804,1748862652927,-420.0,0.00019452,2]
[363757805,1748862652936,-420.0,0.00019452,2]
[363757806,1748862652946,-530.02,0.00019452,2]
[363757807,1748862652955,-420.0,0.00019452,2]
[363757808,1748862652965,-420.0,0.00019452,2]
[363757809,1748862652975,-420.0,0.00019452,2]
[363757810,1748862652984,-564.27,0.00019452,2]
[363757811,1748862652995,-420.0,0.00019452,2]
[363757812,1748862653004,-420.0,0.00019452,2]
[363757813,1748862653014,-420.0,0.00019452,2]
[363757814,1748862653024,-1439.88,0.00019452,2]
[363757815,1748862653033,-420.0,0.00019452,2]
[363757816,1748862653043,-535.76772308,0.00019452,2]
[363757817,1748862653052,-822.82,0.00019452,2]
[363757818,1748862653061,-420.0,0.00019452,2]
[363757819,1748862653071,-420.0,0.00019452,2]
[363757820,1748862653080,-420.0,0.00019452,2]
[363757821,1748862653090,-1240.06,0.00019452,2]
[363757822,1748862653100,-367.89424968,0.00019452,2]
[363757823,1748862653109,-420.0,0.00019452,2]
[363757824,1748862653119,-520.02,0.00019452,2]
[363757825,1748862653130,-420.0,0.00019452,2]
[363757826,1748862653141,-420.0,0.00019452,2]
[363757827,1748862653152,-420.0,0.00019452,2]
[363757828,1748862653162,-420.0,0.00019452,2]
[363757829,1748862653172,-420.0,0.00019452,2]
[363757830,1748862653182,-420.0,0.00019452,2]
[363757831,1748862653192,-420.0,0.00019452,2]
[363757832,1748862653203,-420.0,0.00019452,2]
[363757833,1748862653213,-420.0,0.00019452,2]
[363757834,1748862653223,-420.0,0.00019452,2]
[363757835,1748862653233,-420.0,0.00019452,2]
[363757836,1748862653243,-420.0,0.00019452,2]
[363757837,1748862653253,-420.0,0.00019452,2]
[363757838,1748862653263,-420.0,0.00019452,2]
[363757839,1748862653274,-436.04,0.00019452,2]
[363757840,1748862653283,-420.0,0.00019452,2]
[363757841,1748862653294,-420.0,0.00019452,2]
[363757842,1748862653305,-420.0,0.00019452,2]
[363757843,1748862653315,-420.0,0.00019452,2]
[363757844,1748862653326,-420.0,0.00019452,2]
[363757845,1748862653337,-420.0,0.00019452,2]
[363757846,1748862653347,-1974.41,0.00019452,2]
[363757847,1748862653357,-420.0,0.00019452,2]
[363757848,1748862653367,-420.0,0.00019452,2]
[363757849,1748862653378,-420.0,0.00019452,2]
[363757850,1748862653388,-182.8,0.00019452,2]
[363757851,1748862653399,-561.49,0.00019452,2]
[363757852,1748862653410,-420.0,0.00019452,2]
[363757853,1748862653420,-420.0,0.00019452,2]
[363757854,1748862653431,-420.0,0.00019452,2]
[363757855,1748862653441,-420.0,0.00019452,2]
[363757856,1748862653451,-881.3,0.00019452,2]
[363757857,1748862653460,-406.75,0.00019452,2]
[363757858,1748862653470,-420.0,0.00019452,2]
[363757859,1748862653479,-420.0,0.00019452,2]
[363757860,1748862653489,-420.0,0.00019452,2]
[363757861,1748862653498,-420.0,0.00019452,2]
[363757862,1748862653507,-1075.93,0.00019452,2]
[363757863,1748862653517,-420.0,0.00019452,2]
[363757864,1748862653527,-443.89,0.00019452,2]
[363757865,1748862653538,-420.0,0.00019452,2]
[363757866,1748862653548,-1415.21,0.00019452,2]
[363757867,1748862653559,-1730.09,0.00019452,2]
[363757868,1748862653569,-420.0,0.00019452,2]
[363757869,1748862653579,-420.0,0.00019452,2]
[363757870,1748862653589,-420.0,0.00019452,2]
[363757871,1748862653599,-466.94,0.00019452,2]
[363757872,1748862653610,-642.61,0.00019452,2]
[363757873,1748862653620,-420.0,0.00019452,2]
[363757874,1748862653630,-420.0,0.00019452,2]
[363757875,1748862653640,-523.8,0.00019452,2]
[363757876,1748862653651,-420.0,0.00019452,2]
[363757877,1748862653661,-420.0,0.00019452,2]
[363757878,1748862653672,-1237.97,0.00019452,2]
[363757879,1748862653682,-420.0,0.00019452,2]
[363757880,1748862653693,-420.0,0.00019452,2]
[363757881,1748862653703,-1909.09,0.00019452,2]
[363757882,1748862653712,-420.0,0.00019452,2]
[363757883,1748862653722,-1249.03,0.00019452,2]
[363757884,1748862653732,-6437.65,0.00019452,2]
[363757885,1748862653742,-1533.92,0.00019452,2]
[363757886,1748862653752,-420.0,0.00019452,2]
[363757887,1748862653762,-420.0,0.00019452,2]
[363757888,1748862653772,-420.0,0.00019452,2]
[363757889,1748862653782,-921.22,0.00019452,2]
[363757890,1748862653798,-420.0,0.00019452,2]
[363757891,1748862653809,-420.0,0.00019452,2]
[363757892,1748862653819,-386.29484802,0.00019452,2]
[363757893,1748862653829,-420.0,0.00019452,2]
[363757894,1748862653844,-519.09,0.00019452,2]
[363757895,1748862653855,-420.0,0.00019452,2]
[363757896,1748862653865,-420.0,0.00019452,2]
[363757897,1748862653876,-420.0,0.00019452,2]
[363757898,1748862653886,-467.66,0.00019452,2]
[363757899,1748862653896,-420.0,0.00019452,2]
[363757900,1748862653906,-548.23,0.00019452,2]
[363757901,1748862653918,-420.0,0.00019452,2]
[363757902,1748862653929,-420.0,0.00019452,2]
[363757903,1748862653939,-420.0,0.00019452,2]
[363757904,1748862653949,-420.0,0.00019452,2]
[363757905,1748862653960,-420.0,0.00019452,2]
[363757906,1748862653971,-420.0,0.00019452,2]
[363757907,1748862653981,-420.0,0.00019452,2]
[363757908,1748862653991,-891.02,0.00019452,2]
[363757909,1748862654002,-420.0,0.00019452,2]
[363757910,1748862654012,-420.0,0.00019452,2]
[363757911,1748862654022,-420.0,0.00019452,2]
[363757912,1748862654032,-420.0,0.00019452,2]
[363757913,1748862654044,-448.36,0.00019452,2]
[363757914,1748862654055,-420.0,0.00019452,2]
[363757915,1748862654066,-1264.1,0.00019452,2]
[363757916,1748862654076,-420.0,0.00019452,2]
[363757917,1748862654087,-420.0,0.00019452,2]
[363757918,1748862654097,-420.0,0.00019452,2]
[363757919,1748862654108,-420.0,0.00019452,2]
[363757920,1748862654118,-420.0,0.00019452,2]
[363757921,1748862654128,-420.0,0.00019452,2]
[363757922,1748862654139,-420.0,0.00019452,2]
[363757923,1748862654149,-1564.45,0.00019452,2]
[363757924,1748862654159,-1059.39,0.00019452,2]
[363757925,1748862654169,-420.0,0.00019452,2]
[363757926,1748862654179,-420.0,0.00019452,2]
[363757927,1748862654189,-421.77,0.00019452,2]
[363757928,1748862654198,-420.0,0.00019452,2]
[363757929,1748862654208,-420.0,0.00019452,2]
[363757930,1748862654218,-420.0,0.00019452,2]
[363757931,1748862654227,-2260.21,0.00019452,2]
[363757932,1748862654237,-420.0,0.00019452,2]
[363757933,1748862654247,-420.0,0.00019452,2]
[363757934,1748862654257,-456.0799874,0.00019452,2]
[363757935,1748862654267,-420.0,0.00019452,2]
[363757936,1748862654277,-682.74,0.00019452,2]
[363757937,1748862654287,-11304.68,0.00019452,2]
[363757938,1748862654299,-944.36,0.00019452,2]
[363757939,1748862654309,-420.0,0.00019452,2]
[363757940,1748862654319,-420.0,0.00019452,2]
[363757941,1748862654329,-732.7,0.00019452,2]
[363757942,1748862654339,-420.0,0.00019452,2]
[363757943,1748862654349,-1232.97,0.00019452,2]
[363757944,1748862654359,-420.0,0.00019452,2]
[363757945,1748862654369,-913.31,0.00019452,2]
[363757946,1748862654379,-420.0,0.00019452,2]
[363757947,1748862654390,-420.0,0.00019452,2]
[363757948,1748862654400,-801.37,0.00019452,2]
[363757949,1748862654410,-420.0,0.00019452,2]
[363757950,1748862654420,-420.0,0.00019452,2]
[363757951,1748862654432,-709.66,0.00019452,2]
[363757952,1748862654441,-174.29625335,0.00019455,4]
[363757953,1748862654451,-212.57278419,0.00019455,4]
[363757954,1748862654461,-150.0,0.00019455,4]
[363757955,1748862654471,-150.0,0.00019455,4]
[363757956,1748862654480,-150.0,0.00019458,4]
[363757957,1748862654490,-150.0,0.00019474,4]
[363757958,1748862654500,-174.29625335,0.00019475,4]
[363757959,1748862654509,-212.57278419,0.00019475,4]
[363757960,1748862654519,-1067.59052566,0.00019479,2]
[363757961,1748862654528,-150.0,0.00019484,4]
[363757962,1748862654537,-168.35381066,0.00019489,2]
[363757963,1748862654550,-150.0,0.00019492,4]
[363757964,1748862654560,-300.0,0.00019493,2]
[363757965,1748862654570,-174.29625335,0.00019495,4]
[363757966,1748862654580,-212.57278419,0.00019495,4]
[363757967,1748862654590,-150.0,0.000195,4]
[363757968,1748862654600,-900.0,0.000195,7]
[363757969,1748862654610,-200.0,0.0001951,2]
[363757970,1748862654620,-174.29625335,0.00019515,4]
[363757971,1748862654629,-212.57278419,0.00019515,4]
[363757972,1748862654639,-2010.79076725,0.00019519,2]
[363757973,1748862654650,-150.0,0.00019525,4]
[363757974,1748862654661,-150.0,0.00019526,4]
[363757975,1748862654671,-1067.59052566,0.00019534,2]
[363757976,1748862654680,-174.29625335,0.00019535,4]
[363757977,1748862654690,-212.57278419,0.00019535,4]
[363757978,1748862654700,-150.0,0.00019545,4]
[363757979,1748862654710,-150.0,0.00019548,4]
[363757980,1748862654720,-174.29625335,0.00019556,4]
[363757981,1748862654730,-212.57278419,0.00019556,4]
[363757982,1748862654739,-150.0,0.00019559,4]
[363757983,1748862654749,-174.29625335,0.00019576,4]
[363757984,1748862654759,-212.57278419,0.00019576,4]
[363757985,1748862654768,-150.0,0.00019579,4]
[363757986,1748862654824,-486.71878704,0.00019588,2]
[363757987,1748862654838,-500.0,0.00019588,2]
[363757988,1748862654848,-420.0,0.00019589,2]
[363757989,1748862654858,-420.0,0.00019589,2]
[363757990,1748862654867,-179.153693,0.00019589,2]
[363757991,1748862654878,-420.0,0.00019589,2]
[363757992,1748862654887,-420.0,0.00019589,2]
[363757993,1748862654896,-420.0,0.00019589,2]
[363757994,1748862654908,-420.0,0.00019589,2]
[363757995,1748862654918,-420.0,0.00019589,2]
[363757996,1748862654927,-443.66,0.00019589,2]
[363757997,1748862654937,-420.0,0.00019589,2]
[363757998,1748862654946,-420.0,0.00019589,2]
[363757999,1748862654956,-420.0,0.00019589,2]
[363758000,1748862654966,-420.0,0.00019589,2]
[363758001,1748862654975,-420.0,0.00019589,2]
[363758002,1748862654985,-420.0,0.00019589,2]
[363758003,1748862654996,-420.0,0.00019589,2]
[363758004,1748862655007,-420.0,0.00019589,2]
[363758005,1748862655016,-420.0,0.00019589,2]
[363758006,1748862655025,-420.0,0.00019589,2]
[363758007,1748862655034,-381.36,0.00019589,2]
[363758008,1748862655043,-324.44,0.00019589,2]
[363758009,1748862655052,-470.02,0.00019589,2]
[363758010,1748862655062,-259.92,0.00019589,2]
[363758011,1748862655071,-420.0,0.00019589,2]
[363758012,1748862655081,-420.0,0.00019589,2]
[363758013,1748862655090,-420.0,0.00019589,2]
[363758014,1748862655099,-485.8,0.00019589,2]
[363758015,1748862655109,-420.0,0.00019589,2]
[363758016,1748862655119,-196.64,0.00019589,2]
[363758017,1748862655129,-420.0,0.00019589,2]
[363758018,1748862655139,-420.0,0.00019589,2]
[363758019,1748862655148,-479.7,0.00019589,2]
[363758020,1748862655157,-231.12,0.00019589,2]
[363758021,1748862655167,-261.65,0.00019589,2]
[363758022,1748862655177,-420.0,0.00019589,2]
[363758023,1748862655186,-420.0,0.00019589,2]
[363758024,1748862655196,-420.0,0.00019589,2]
[363758025,1748862655206,-420.0,0.00019589,2]
[363758026,1748862655215,-414.58,0.00019589,2]
[363758027,1748862655225,-420.0,0.00019589,2]
[363758028,1748862655234,-420.0,0.00019589,2]
[363758029,1748862655244,-278.05592737,0.00019589,2]
[363758030,1748862655254,-420.0,0.00019589,2]
[363758031,1748862655265,-420.0,0.00019589,2]
[363758032,1748862655275,-552.05674296,0.00019589,2]
[363758033,1748862655285,-420.0,0.00019589,2]
[363758034,1748862655296,-420.0,0.00019589,2]
[363758035,1748862655306,-1325.44,0.00019589,2]
[363758036,1748862655316,-522.3,0.00019589,2]
[363758037,1748862655325,-2255.16,0.00019589,2]
[363758038,1748862655335,-420.0,0.00019589,2]
[363758039,1748862655345,-420.0,0.00019589,2]
[363758040,1748862655355,-420.0,0.00019589,2]
[363758041,1748862655364,-420.0,0.00019589,2]
[363758042,1748862655375,-420.0,0.00019589,2]
[363758043,1748862655385,-867.2,0.00019589,2]
[363758044,1748862655394,-389.2,0.00019589,2]
[363758045,1748862655404,-420.0,0.00019589,2]
[363758046,1748862655413,-420.0,0.00019589,2]
[363758047,1748862655423,-420.0,0.00019589,2]
[363758048,1748862655432,-420.0,0.00019589,2]
[363758049,1748862655442,-637.6,0.00019589,2]
[363758050,1748862655452,-420.0,0.00019589,2]
[363758051,1748862655461,-420.0,0.00019589,2]
[363758052,1748862655471,-420.0,0.00019589,2]
[363758053,1748862655480,-483.05,0.00019589,2]
[363758054,1748862655490,-420.0,0.00019589,2]
[363758055,1748862655500,-420.0,0.00019589,2]
[363758056,1748862655510,-420.0,0.00019589,2]
[363758057,1748862655520,-420.0,0.00019589,2]
[363758058,1748862655530,-420.0,0.00019589,2]
[363758059,1748862655542,-493.62,0.00019589,2]
[363758060,1748862655553,-385.3,0.00019589,2]
[363758061,1748862655563,-420.0,0.00019589,2]
[363758062,1748862655574,-2496.92,0.00019589,2]
[363758063,1748862655584,-420.0,0.00019589,2]
[363758064,1748862655594,-420.0,0.00019589,2]
[363758065,1748862655604,-420.0,0.00019589,2]
[363758066,1748862655615,-457.09,0.00019589,2]
[363758067,1748862655625,-420.0,0.00019589,2]
[363758068,1748862655634,-420.0,0.00019589,2]
[363758069,1748862655644,-420.0,0.00019589,2]
[363758070,1748862655654,-420.0,0.00019589,2]
[363758071,1748862655663,-420.0,0.00019589,2]
[363758072,1748862655672,-420.0,0.00019589,2]
[363758073,1748862655681,-653.47,0.00019589,2]
[363758074,1748862655691,-420.0,0.00019589,2]
[363758075,1748862655699,-889.49,0.00019589,2]
[363758076,1748862655709,-836.29,0.00019589,2]
[363758077,1748862655718,-420.0,0.00019589,2]
[363758078,1748862655729,-420.0,0.00019589,2]
[363758079,1748862655739,-420.0,0.00019589,2]
[363758080,1748862655749,-420.0,0.00019589,2]
[363758081,1748862655757,-397.3,0.00019589,2]
[363758082,1748862655766,-530.02,0.00019589,2]
[363758083,1748862655776,-420.0,0.00019589,2]
[363758084,1748862655784,-420.0,0.00019589,2]
[363758085,1748862655794,-374.14,0.00019589,2]
[363758086,1748862655804,-564.27,0.00019589,2]
[363758087,1748862655813,-420.0,0.00019589,2]
[363758088,1748862655823,-420.0,0.00019589,2]
[363758089,1748862655835,-1439.88,0.00019589,2]
[363758090,1748862655846,-420.0,0.00019589,2]
[363758091,1748862655855,-822.82,0.00019589,2]
[363758092,1748862655866,-420.0,0.00019589,2]
[363758093,1748862655875,-1240.06,0.00019589,2]
[363758094,1748862655885,-304.66108688,0.00019589,2]
[363758095,1748862655895,-420.0,0.00019589,2]
[363758096,1748862655905,-465.78,0.00019589,2]
[363758097,1748862655916,-420.0,0.00019589,2]
[363758098,1748862655925,-420.0,0.00019589,2]
[363758099,1748862655935,-266.87763992,0.00019589,2]
[363758100,1748862655945,-420.0,0.00019589,2]
[363758101,1748862655954,-420.0,0.00019589,2]
[363758102,1748862655964,-420.0,0.00019589,2]
[363758103,1748862655974,-420.0,0.00019589,2]
[363758104,1748862655983,-420.0,0.00019589,2]
[363758105,1748862655991,-420.0,0.00019589,2]
[363758106,1748862656001,-420.0,0.00019589,2]
[363758107,1748862656009,-420.0,0.00019589,2]
[363758108,1748862656018,-420.0,0.00019589,2]
[363758109,1748862656027,-420.0,0.00019589,2]
[363758110,1748862656037,-420.0,0.00019589,2]
[363758111,1748862656048,-420.0,0.00019589,2]
[363758112,1748862656057,-420.0,0.00019589,2]
[363758113,1748862656067,-420.0,0.00019589,2]
[363758114,1748862656078,-1974.41,0.00019589,2]
[363758115,1748862656089,-420.0,0.00019589,2]
[363758116,1748862656098,-420.0,0.00019589,2]
[363758117,1748862656108,-420.0,0.00019589,2]
[363758118,1748862656118,-561.49,0.00019589,2]
[363758119,1748862656128,-499.4,0.00019589,2]
[363758120,1748862656138,-420.0,0.00019589,2]
[363758121,1748862656153,-420.0,0.00019589,2]
[363758122,1748862656163,-420.0,0.00019589,2]
[363758123,1748862656172,-881.3,0.00019589,2]
[363758124,1748862656181,-420.0,0.00019589,2]
[363758125,1748862656190,-420.0,0.00019589,2]
[363758126,1748862656200,-420.0,0.00019589,2]
[363758127,1748862656208,-1075.93,0.00019589,2]
[363758128,1748862656218,-420.0,0.00019589,2]
[363758129,1748862656228,-551.94,0.00019589,2]
[363758130,1748862656237,-443.89,0.00019589,2]
[363758131,1748862656246,-1415.21,0.00019589,2]
[363758132,1748862656254,-1730.09,0.00019589,2]
[363758133,1748862656263,-420.0,0.00019589,2]
[363758134,1748862656272,-401.9746539,0.00019589,2]
[363758135,1748862656281,-420.0,0.00019589,2]
[363758136,1748862656291,-642.61,0.00019589,2]
[363758137,1748862656302,-420.0,0.00019589,2]
[363758138,1748862656312,-194.22,0.00019589,2]
[363758139,1748862656323,-420.0,0.00019589,2]
[363758140,1748862656333,-420.0,0.00019589,2]
[363758141,1748862656343,-1237.97,0.00019589,2]
[363758142,1748862656353,-420.0,0.00019589,2]
[363758143,1748862656363,-420.0,0.00019589,2]
[363758144,1748862656373,-1909.09,0.00019589,2]
[363758145,1748862656384,-420.0,0.00019589,2]
[363758146,1748862656394,-1249.03,0.00019589,2]
[363758147,1748862656404,-6437.65,0.00019589,2]
[363758148,1748862656414,-1533.92,0.00019589,2]
[363758149,1748862656424,-420.0,0.00019589,2]
[363758150,1748862656435,-563.6,0.00019589,2]
[363758151,1748862656444,-921.22,0.00019589,2]
[363758152,1748862656454,-420.0,0.00019589,2]
[363758153,1748862656464,-420.0,0.00019589,2]
[363758154,1748862656474,-420.0,0.00019589,2]
[363758155,1748862656484,-420.0,0.00019589,2]
[363758156,1748862656494,-420.0,0.00019589,2]
[363758157,1748862656504,-420.0,0.00019589,2]
[363758158,1748862656513,-420.0,0.00019589,2]
[363758159,1748862656523,-548.23,0.00019589,2]
[363758160,1748862656533,-420.0,0.00019589,2]
[363758161,1748862656545,-420.0,0.00019589,2]
[363758162,1748862656555,-420.0,0.00019589,2]
[363758163,1748862656564,-420.0,0.00019589,2]
[363758164,1748862656575,-420.0,0.00019589,2]
[363758165,1748862656586,-420.0,0.00019589,2]
[363758166,1748862656597,-420.0,0.00019589,2]
[363758167,1748862656607,-891.02,0.00019589,2]
[363758168,1748862656618,-420.0,0.00019589,2]
[363758169,1748862656629,-160.52,0.00019589,2]
[363758170,1748862656640,-448.36,0.00019589,2]
[363758171,1748862656650,-420.0,0.00019589,2]
[363758172,1748862656660,-1264.1,0.00019589,2]
[363758173,1748862656671,-420.0,0.00019589,2]
[363758174,1748862656682,-420.0,0.00019589,2]
[363758175,1748862656692,-420.0,0.00019589,2]
[363758176,1748862656702,-420.0,0.00019589,2]
[363758177,1748862656712,-1564.45,0.00019589,2]
[363758178,1748862656723,-1059.39,0.00019589,2]
[363758179,1748862656734,-420.0,0.00019589,2]
[363758180,1748862656745,-420.0,0.00019589,2]
[363758181,1748862656755,-421.77,0.00019589,2]
[363758182,1748862656765,-420.0,0.00019589,2]
[363758183,1748862656776,-420.0,0.00019589,2]
[363758184,1748862656786,-420.0,0.00019589,2]
[363758185,1748862656797,-2260.21,0.00019589,2]
[363758186,1748862656808,-420.0,0.00019589,2]
[363758187,1748862656818,-420.0,0.00019589,2]
[363758188,1748862656833,-682.74,0.00019589,2]
[363758189,1748862656843,-944.36,0.00019589,2]
[363758190,1748862656853,-11304.68,0.00019589,2]
[363758191,1748862656864,-420.0,0.00019589,2]
[363758192,1748862656875,-420.0,0.00019589,2]
[363758193,1748862656886,-732.7,0.00019589,2]
[363758194,1748862656896,-420.0,0.00019589,2]
[363758195,1748862656908,-1232.97,0.00019589,2]
[363758196,1748862656918,-420.0,0.00019589,2]
[363758197,1748862656928,-913.31,0.00019589,2]
[363758198,1748862656939,-420.0,0.00019589,2]
[363758199,1748862656949,-520.02961152,0.00019589,2]
[363758200,1748862656959,-801.37,0.00019589,2]
[363758201,1748862656969,-420.0,0.00019589,2]
[363758202,1748862656980,-420.0,0.00019589,2]
[363758203,1748862656993,-709.66,0.00019589,2]
[363758204,1748862657004,-150.0,0.00019591,4]
[363758205,1748862657013,-150.0,0.00019593,4]
[363758206,1748862657023,-2010.79076725,0.00019596,2]
[363758207,1748862657032,-174.29625335,0.00019596,4]
[363758208,1748862657041,-212.57278419,0.00019596,4]
[363758209,1748862657051,-1438.611804,0.00019599,2]
[363758210,1748862657060,-1400.0,0.000196,7]
[363758211,1748862657070,-150.0,0.00019613,4]
[363758212,1748862657080,-191.0,0.00019615,2]
[363758213,1748862657092,-174.29625335,0.00019616,4]
[363758214,1748862657101,-212.57278419,0.00019616,4]
[363758215,1748862657111,-1067.59052566,0.00019616,2]
[363758216,1748862657121,-150.0,0.00019627,4]
[363758217,1748862657130,-150.0,0.00019632,4]
[363758218,1748862657139,-174.29625335,0.00019636,4]
[363758219,1748862657147,-212.57278419,0.00019636,4]
[363758220,1748862657156,-150.0,0.00019636,4]